bitfinex/quotes_BTCUSD_20230907
["timestamp","ask_amount","ask_price","bid_price","bid_amount"]
[1694130849697,0.84081322,26226.0,26225.0,1.12068776]
[1694130849923,0.95131322,26226.0,26225.0,1.27610905]
[1694130850147,0.85341322,26226.0,26225.0,2.64794976]
[1694130850376,0.85341322,26226.0,26225.0,3.41058076]
[1694130851591,0.42355322,26226.0,26225.0,3.41058076]
[1694130852280,0.40755322,26226.0,26225.0,3.40858076]
[1694130852744,0.42255322,26226.0,26225.0,3.39066269]
[1694130853174,0.38855322,26226.0,26225.0,3.38666269]
[1694130853564,0.40355322,26226.0,26225.0,3.38866269]
[1694130853980,0.42055322,26226.0,26225.0,3.39066269]
[1694130854195,0.40355322,26226.0,26225.0,3.38866269]
[1694130854604,0.42055322,26226.0,26225.0,3.39066269]
[1694130856286,0.42055322,26226.0,26225.0,3.410582]
[1694130857640,0.42055322,26226.0,26225.0,2.647951]
[1694130858007,0.57345322,26226.0,26225.0,2.647951]
[1694130860310,0.57345322,26226.0,26225.0,3.410582]
[1694130864647,0.57345322,26226.0,26225.0,2.647951]
[1694130866335,0.57345322,26226.0,26225.0,2.62803169]
[1694130869831,0.57345322,26226.0,26225.0,2.64795177]
[1694130873422,0.76410322,26226.0,26225.0,2.64795177]
[1694130874194,0.57345322,26226.0,26225.0,2.64795177]
[1694130876326,0.79803322,26226.0,26225.0,1.12268977]
[1694130876554,1.11357205,26226.0,26225.0,0.02392008]
[1694130876772,1.11357205,26226.0,26225.0,0.004]
[1694130876773,1.49436633,26226.0,26225.0,0.004]
[1694130876988,1.50072633,26226.0,26225.0,0.004]
[1694130877197,1.93875313,26226.0,26225.0,0.002]
[1694130877406,1.94271313,26226.0,26225.0,0.002]
[1694130877621,1.97807313,26226.0,26225.0,0.004]
[1694130877832,1.52502633,26226.0,26225.0,0.002]
[1694130878072,1.52304633,26226.0,26225.0,0.002]
[1694130878311,1.52292633,26226.0,26225.0,0.002]
[1694130878527,0.075,26223.0,26218.0,1.525633]
[1694130878742,0.1169,26220.0,26219.0,1.09895569]
[1694130878956,0.50545322,26220.0,26219.0,1.09895569]
[1694130879170,1.13568322,26220.0,26219.0,1.09895569]
[1694130879422,1.13568322,26220.0,26217.0,0.01992544]
[1694130879423,0.115,26218.0,26217.0,0.01992544]
[1694130879654,0.62045322,26218.0,26217.0,1.11894867]
[1694130879871,0.86567322,26218.0,26217.0,1.11894867]
[1694130880083,0.86723322,26218.0,26217.0,1.11894867]
[1694130880294,0.86585322,26218.0,26217.0,1.09902323]
[1694130880513,0.02,26217.0,26214.0,1.525873]
[1694130880749,0.02,26217.0,26215.0,1.09902727]
[1694130880750,0.50545322,26216.0,26215.0,1.09902727]
[1694130880967,0.66705322,26216.0,26215.0,1.09902727]
[1694130881386,0.73287322,26216.0,26215.0,1.09902727]
[1694130881597,0.73455322,26216.0,26215.0,1.09902727]
[1694130881803,0.73479322,26216.0,26215.0,1.09902727]
[1694130882021,0.93175181,26216.0,26215.0,1.09902727]
[1694130882217,0.95337181,26216.0,26212.0,1.778896]
[1694130882459,0.1169,26214.0,26213.0,0.70544636]
[1694130882670,0.50545322,26214.0,26213.0,0.70544636]
[1694130882877,0.66705322,26214.0,26213.0,0.70544636]
[1694130883348,0.66705322,26214.0,26212.0,1.525989]
[1694130883578,0.38855322,26213.0,26212.0,1.525989]
[1694130883785,0.38855322,26213.0,26212.0,2.20535039]
[1694130883998,0.38855322,26213.0,26212.0,2.22628051]
[1694130884426,0.38855322,26213.0,26212.0,0.01993012]
[1694130884662,0.38855322,26213.0,26212.0,0.02193012]
[1694130884906,0.55475322,26213.0,26212.0,0.78993912]
[1694130885165,0.55475322,26213.0,26212.0,1.49732136]
[1694130885405,0.38855322,26213.0,26212.0,3.02333936]
[1694130885644,0.39255322,26213.0,26212.0,3.14023936]
[1694130885867,0.39255322,26213.0,26212.0,3.02333936]
[1694130886558,0.19073,26216.0,26215.0,0.005]
[1694130886828,0.57924322,26220.0,26217.0,0.005]
[1694130887079,0.57924322,26220.0,26218.0,1.62561453]
[1694130887360,0.57924322,26220.0,26219.0,0.70738224]
[1694130887589,0.57924322,26220.0,26219.0,2.99579724]
[1694130888376,0.38855322,26220.0,26219.0,3.14846224]
[1694130888644,0.38855322,26220.0,26219.0,3.14946224]
[1694130888645,0.41255322,26220.0,26219.0,3.14946224]
[1694130889448,0.43655322,26220.0,26219.0,3.15146224]
[1694130889733,0.43655322,26220.0,26219.0,2.38865724]
[1694130889983,0.43655322,26220.0,26219.0,0.003]
[1694130889984,0.55345322,26220.0,26219.0,0.003]
[1694130890202,0.55345322,26220.0,26219.0,0.95941603]
[1694130890429,0.55345322,26220.0,26219.0,0.003]
[1694130890684,0.55345322,26220.0,26219.0,0.95883572]
[1694130891097,0.55345322,26220.0,26219.0,1.72164072]
[1694130891525,0.43655322,26220.0,26219.0,2.48444572]
[1694130894411,0.43655322,26220.0,26219.0,1.52861]
[1694130894616,0.43655322,26220.0,26219.0,2.46626755]
[1694130895287,0.048,26220.0,26219.0,3.38949384]
[1694130895548,0.048,26220.0,26219.0,4.15174162]
[1694130895802,0.048,26220.0,26219.0,6.19431024]
[1694130896058,0.048,26220.0,26219.0,6.23227431]
[1694130896316,0.04,26227.0,26222.0,0.005]
[1694130896570,0.38855322,26226.0,26223.0,3.38610084]
[1694130896842,0.38855322,26226.0,26224.0,0.93765755]
[1694130897109,0.38855322,26226.0,26225.0,1.525262]
[1694130898764,0.60035322,26226.0,26225.0,1.527262]
[1694130899244,0.57635322,26226.0,26225.0,2.289893]
[1694130899744,0.60035322,26226.0,26225.0,2.291893]
[1694130906379,0.60035322,26226.0,26225.0,1.529262]
[1694130906674,0.71725322,26226.0,26225.0,0.004]
[1694130906908,0.80371322,26226.0,26225.0,0.004]
[1694130907161,0.80425322,26226.0,26225.0,0.004]
[1694130907411,0.80491322,26226.0,26225.0,0.004]
[1694130907656,0.80479322,26226.0,26225.0,0.004]
[1694130907887,0.80323322,26226.0,26225.0,0.004]
[1694130908100,0.80245322,26226.0,26225.0,0.004]
[1694130908338,0.80161322,26226.0,26225.0,0.004]
[1694130908571,0.80137322,26226.0,26225.0,0.004]
[1694130908831,0.80005322,26226.0,26225.0,0.004]
[1694130909047,0.80071322,26226.0,26225.0,0.004]
[1694130909321,0.80059322,26226.0,26225.0,0.004]
[1694130909832,0.80149322,26226.0,26225.0,0.004]
[1694130910056,0.80107322,26226.0,26225.0,0.004]
[1694130910220,0.80923322,26226.0,26225.0,0.004]
[1694130910441,1.17234322,26226.0,26225.0,0.004]
[1694130910640,1.36444322,26226.0,26225.0,0.004]
[1694130910837,1.35892322,26226.0,26225.0,0.004]
[1694130911037,1.22416322,26226.0,26225.0,0.004]
[1694130911212,1.22128322,26226.0,26225.0,0.004]
[1694130911388,1.20616322,26226.0,26225.0,0.004]
[1694130911599,1.20694322,26226.0,26225.0,0.004]
[1694130911827,0.02,26223.0,26221.0,0.762733]
[1694130912063,0.38855322,26222.0,26221.0,0.762733]
[1694130912272,0.45293322,26222.0,26221.0,0.762733]
[1694130912475,0.64368322,26222.0,26221.0,0.762733]
[1694130912719,0.38855322,26222.0,26221.0,0.802733]
[1694130913366,0.45641322,26222.0,26221.0,0.802733]
[1694130913574,0.45587322,26222.0,26221.0,0.802733]
[1694130913779,0.45455322,26222.0,26221.0,0.802733]
[1694130914040,0.45923322,26222.0,26221.0,0.802733]
[1694130914431,0.45917322,26222.0,26221.0,0.9494844]
[1694130914635,0.45803322,26222.0,26221.0,0.9494844]
[1694130914836,0.60165322,26222.0,26221.0,0.9514844]
[1694130915705,0.71855322,26222.0,26221.0,0.042]
[1694130916552,0.71855322,26222.0,26221.0,0.94130044]
[1694130923173,0.71855322,26222.0,26221.0,0.90130044]
[1694130923408,0.71855322,26222.0,26221.0,0.98130044]
[1694130923600,0.71855322,26222.0,26221.0,1.02130044]
[1694130925526,0.60165322,26222.0,26221.0,1.02130044]
[1694130928279,0.60165322,26222.0,26221.0,0.90130044]
[1694130928516,0.60165322,26222.0,26221.0,1.19345938]
[1694130928517,0.43555322,26222.0,26221.0,1.19345938]
[1694130928737,0.047,26222.0,26221.0,3.8569334]
[1694130928964,0.1567,26233.0,26228.0,0.02]
[1694130929211,0.1289,26236.0,26234.0,0.39326806]
[1694130929212,0.00438,26236.0,26234.0,0.39326806]
[1694130929458,0.19056,26238.0,26235.0,1.52468]
[1694130929671,0.19056,26238.0,26235.0,2.40392]
[1694130929898,0.19056,26238.0,26235.0,2.50392]
[1694130930531,0.19056,26238.0,26235.0,2.656497]
[1694130930743,0.19056,26238.0,26235.0,2.42392]
[1694130930959,0.19056,26238.0,26236.0,0.02]
[1694130931397,0.19056,26238.0,26236.0,0.782311]
[1694130931999,0.0311,26237.0,26236.0,0.782311]
[1694130932231,0.0201,26237.0,26236.0,0.899211]
[1694130932438,0.0441,26237.0,26236.0,0.899211]
[1694130932649,0.0551,26237.0,26236.0,0.901211]
[1694130933060,0.0311,26237.0,26236.0,0.901211]
[1694130933265,0.0311,26237.0,26236.0,0.903211]
[1694130933266,0.0551,26237.0,26236.0,0.903211]
[1694130933476,0.44365322,26237.0,26236.0,0.903211]
[1694130933916,0.46277384,26237.0,26236.0,2.427833]
[1694130934133,0.45777384,26237.0,26236.0,2.427833]
[1694130934569,0.43865322,26237.0,26236.0,2.427833]
[1694130934780,0.43865322,26237.0,26236.0,2.447833]
[1694130935547,0.43865322,26237.0,26236.0,2.507833]
[1694130936988,0.43865322,26237.0,26236.0,2.527833]
[1694130938716,0.0501,26237.0,26236.0,2.614353]
[1694130938925,0.0501,26237.0,26236.0,2.611113]
[1694130939137,0.0501,26237.0,26236.0,2.612613]
[1694130939350,0.0501,26237.0,26236.0,2.621553]
[1694130939560,0.0261,26237.0,26236.0,2.956173]
[1694130939769,0.0151,26237.0,26236.0,2.954173]
[1694130939987,0.0271,26237.0,26236.0,2.955293]
[1694130940189,0.0271,26237.0,26236.0,2.959733]
[1694130940399,0.0271,26237.0,26236.0,2.958953]
[1694130940611,0.0271,26237.0,26236.0,2.958653]
[1694130940826,0.0271,26237.0,26236.0,2.955353]
[1694130941046,0.0271,26237.0,26236.0,2.954993]
[1694130941237,0.0271,26237.0,26236.0,2.947553]
[1694130941467,0.0271,26237.0,26236.0,2.933093]
[1694130941685,0.0161,26237.0,26236.0,2.944573]
[1694130941912,0.40565322,26237.0,26236.0,2.938613]
[1694130942133,0.40565322,26237.0,26236.0,2.873833]
[1694130942378,0.58611854,26237.0,26236.0,0.03]
[1694130942596,0.40565322,26237.0,26236.0,0.03]
[1694130943035,0.40565322,26237.0,26236.0,0.762311]
[1694130943036,0.42106921,26237.0,26236.0,0.762311]
[1694130943301,0.42306921,26237.0,26236.0,0.762311]
[1694130943530,0.42606921,26237.0,26236.0,0.15258]
[1694130943764,0.00762,26236.0,26231.0,0.33326806]
[1694130943977,0.25110599,26237.0,26234.0,0.39326806]
[1694130944197,0.1886,26236.0,26234.0,0.39326806]
[1694130944416,0.023,26236.0,26234.0,0.39326806]
[1694130944877,0.38855322,26235.0,26232.0,0.152596]
[1694130945084,0.38855322,26235.0,26231.0,0.39326806]
[1694130945313,0.1662,26234.0,26231.0,0.39326806]
[1694130946135,0.00528004,26233.0,26232.0,0.002]
[1694130946351,0.02828004,26233.0,26231.0,0.39326806]
[1694130946557,0.00528004,26233.0,26231.0,0.002]
[1694130946794,0.00528004,26233.0,26231.0,0.39726806]
[1694130947006,0.71905322,26232.0,26231.0,0.002]
[1694130947427,0.72434865,26232.0,26231.0,0.002]
[1694130947615,0.72434865,26232.0,26228.0,0.39326806]
[1694130947825,0.72434865,26232.0,26228.0,0.33326806]
[1694130947826,0.38855322,26229.0,26228.0,0.33326806]
[1694130948251,0.39382078,26229.0,26228.0,0.33326806]
[1694130948669,0.39382078,26229.0,26228.0,0.33426806]
[1694130948889,0.39382078,26229.0,26228.0,0.33626806]
[1694130949105,0.39382078,26229.0,26228.0,0.33426806]
[1694130949322,0.39382078,26229.0,26228.0,0.33326806]
[1694130949584,0.43282078,26229.0,26228.0,0.33526806]
[1694130949797,0.43282078,26229.0,26228.0,0.002]
[1694130951215,0.42755322,26229.0,26228.0,0.002]
[1694130953209,0.61819322,26229.0,26228.0,0.002]
[1694130953944,0.62996759,26229.0,26228.0,0.002]
[1694130954556,0.62496759,26229.0,26228.0,0.002]
[1694130955207,0.63004682,26229.0,26228.0,0.002]
[1694130956450,0.43940682,26229.0,26228.0,0.002]
[1694130956706,0.41640682,26229.0,26228.0,0.002]
[1694130956950,0.39955322,26229.0,26228.0,0.002]
[1694130957395,0.41130119,26229.0,26228.0,0.002]
[1694130957642,0.39955322,26229.0,26228.0,0.002]
[1694130958366,0.41130119,26229.0,26228.0,0.002]
[1694130959581,0.41130119,26229.0,26228.0,1.643986]
[1694130959801,0.39955322,26229.0,26228.0,2.486529]
[1694130960293,0.39955322,26229.0,26228.0,3.20227052]
[1694130960526,0.39955322,26229.0,26228.0,2.486529]
[1694130961253,0.39955322,26229.0,26228.0,3.22111797]
[1694130963701,0.39955322,26229.0,26228.0,3.24111797]
[1694130963908,0.016,26229.0,26228.0,3.33459797]
[1694130964163,0.016,26229.0,26228.0,3.42059797]
[1694130964388,0.016,26229.0,26228.0,3.42173797]
[1694130964663,0.016,26229.0,26228.0,3.41945797]
[1694130964918,0.016,26229.0,26228.0,3.35291797]
[1694130965183,0.007,26229.0,26228.0,3.32755797]
[1694130965394,0.20567,26237.0,26234.0,0.39326806]
[1694130965647,0.38855322,26236.0,26235.0,0.27232129]
[1694130965866,0.38855322,26236.0,26235.0,0.1169]
[1694130966348,0.39375656,26236.0,26235.0,0.1169]
[1694130966576,0.40568964,26236.0,26235.0,0.1169]
[1694130967302,0.42968964,26236.0,26235.0,0.1179]
[1694130968642,0.45368964,26236.0,26235.0,0.1199]
[1694130971209,0.45368964,26236.0,26235.0,0.80797068]
[1694130971654,0.45368964,26236.0,26235.0,3.21499068]
[1694130971870,0.4484863,26236.0,26235.0,3.28135068]
[1694130972087,0.43655322,26236.0,26235.0,3.28171068]
[1694130972304,0.43655322,26236.0,26235.0,3.28147068]
[1694130972504,0.41255322,26236.0,26235.0,3.28005068]
[1694130972717,0.38855322,26236.0,26235.0,3.27775068]
[1694130972926,0.40655322,26236.0,26235.0,3.28067068]
[1694130973127,0.42255322,26236.0,26235.0,3.28185068]
[1694130973357,0.42255322,26236.0,26235.0,3.27909068]
[1694130973578,0.034,26236.0,26235.0,3.29343068]
[1694130973784,0.034,26236.0,26235.0,3.29301068]
[1694130974022,0.034,26236.0,26235.0,3.70519068]
[1694130974236,0.034,26236.0,26235.0,3.70837068]
[1694130974460,0.0201,26243.0,26242.0,0.45326806]
[1694130974665,0.40865322,26243.0,26242.0,0.72558935]
[1694130974870,0.40865322,26243.0,26242.0,2.09444206]
[1694130975080,0.42060996,26243.0,26242.0,2.85657906]
[1694130975356,0.42060996,26243.0,26240.0,0.26]
[1694130975564,0.38855322,26242.0,26241.0,0.76215]
[1694130975804,0.38855322,26242.0,26241.0,2.523366]
[1694130976022,0.38855322,26242.0,26241.0,1.7612]
[1694130976444,0.400651,26242.0,26241.0,1.7612]
[1694130976875,0.400651,26242.0,26241.0,1.7632]
[1694130976876,0.420651,26242.0,26241.0,1.7632]
[1694130977339,0.40855322,26242.0,26241.0,1.7632]
[1694130978109,0.40855322,26242.0,26241.0,1.7232]
[1694130978315,0.40855322,26242.0,26241.0,1.7632]
[1694130978517,0.40855322,26242.0,26241.0,1.915741]
[1694130978930,0.43255322,26242.0,26241.0,1.917741]
[1694130979341,0.43255322,26242.0,26241.0,0.393441]
[1694130982690,0.43255322,26242.0,26241.0,1.155607]
[1694130986361,0.43255322,26242.0,26241.0,1.917773]
[1694130988188,0.43255322,26242.0,26241.0,2.56433399]
[1694130988604,0.43255322,26242.0,26241.0,1.917773]
[1694130988809,0.43255322,26242.0,26241.0,2.563581]
[1694130989934,0.43255322,26242.0,26241.0,1.917773]
[1694130990116,0.43255322,26242.0,26241.0,2.5779644]
[1694130995475,0.43255322,26242.0,26241.0,2.51562574]
[1694130997856,0.43255322,26242.0,26241.0,2.53153803]
[1694130999071,0.43255322,26242.0,26241.0,3.37537542]
[1694130999274,0.40855322,26242.0,26241.0,3.37337542]
[1694130999481,0.38855322,26242.0,26241.0,3.37137542]
[1694130999677,0.40355322,26242.0,26241.0,3.37337542]
[1694130999882,0.40555322,26242.0,26241.0,3.39837542]
[1694131000028,0.39055322,26242.0,26241.0,3.39637542]
[1694131000230,0.39255322,26242.0,26241.0,3.42037542]
[1694131001153,0.39255322,26242.0,26241.0,3.33870403]
[1694131001578,0.39255322,26242.0,26241.0,2.57653803]
[1694131003356,0.39255322,26242.0,26241.0,1.05220603]
[1694131003770,0.40870351,26242.0,26241.0,1.05220603]
[1694131004202,0.39255322,26242.0,26241.0,1.05220603]
[1694131004400,0.39055322,26242.0,26241.0,1.02820603]
[1694131004615,0.38855322,26242.0,26241.0,1.00320603]
[1694131004816,0.4087163,26242.0,26241.0,1.04420603]
[1694131005243,0.38855322,26242.0,26241.0,1.76537203]
[1694131005456,0.39055322,26242.0,26241.0,2.63022441]
[1694131006077,0.39255322,26242.0,26241.0,2.65022441]
[1694131006295,0.40865645,26242.0,26241.0,2.65022441]
[1694131006735,0.39255322,26242.0,26241.0,2.65022441]
[1694131008567,0.39255322,26242.0,26241.0,2.56853803]
[1694131009377,0.40869481,26242.0,26241.0,2.56853803]
[1694131009583,0.40869481,26242.0,26241.0,2.50853803]
[1694131009788,0.40869481,26242.0,26241.0,1.80637203]
[1694131013060,0.40869481,26242.0,26241.0,1.88808585]
[1694131013266,0.40869481,26242.0,26241.0,1.80637203]
[1694131013473,0.40869481,26242.0,26241.0,1.88808555]
[1694131015290,0.40869481,26242.0,26241.0,1.00591955]
[1694131015490,0.43169481,26242.0,26241.0,0.65476503]
[1694131018397,0.43169481,26242.0,26241.0,0.64499775]
[1694131019419,0.62223481,26242.0,26241.0,0.64499775]
[1694131020252,0.43169481,26242.0,26241.0,0.64499775]
[1694131020806,0.62223481,26242.0,26241.0,0.64499775]
[1694131023161,0.40669481,26242.0,26241.0,0.89731904]
[1694131023322,0.40669481,26242.0,26241.0,2.65927345]
[1694131023548,0.40469481,26242.0,26241.0,2.63827345]
[1694131023957,0.38855322,26242.0,26241.0,2.63927345]
[1694131024395,0.38855322,26242.0,26241.0,2.64227345]
[1694131024578,0.38855322,26242.0,26241.0,3.40443945]
[1694131025565,0.38855322,26242.0,26241.0,2.57208713]
[1694131025771,0.38855322,26242.0,26241.0,2.80039222]
[1694131026578,0.38855322,26242.0,26241.0,2.57208713]
[1694131040201,0.38855322,26242.0,26241.0,2.61208713]
[1694131046303,0.38855322,26242.0,26241.0,2.72898713]
[1694131048555,0.38855322,26242.0,26241.0,1.31610151]
[1694131049546,0.38855322,26242.0,26241.0,2.07826751]
[1694131049751,0.38855322,26242.0,26241.0,0.55393551]
[1694131051139,0.38855322,26242.0,26241.0,1.31610151]
[1694131052240,0.38855322,26242.0,26241.0,2.07826751]
[1694131059039,0.38855322,26242.0,26241.0,2.61208713]
[1694131059243,0.38855322,26242.0,26241.0,2.79846713]
[1694131059450,0.38855322,26242.0,26241.0,2.80098713]
[1694131059656,0.38855322,26242.0,26241.0,2.72898713]
[1694131061076,0.38855322,26242.0,26241.0,2.61208713]
[1694131061314,0.38855322,26242.0,26241.0,2.72898713]
[1694131062793,0.38855322,26242.0,26241.0,2.74898713]
[1694131063256,0.2629,26249.0,26241.0,2.74898713]
[1694131063257,0.30675729,26261.0,26248.0,0.4009]
[1694131063480,0.0201,26263.0,26259.0,0.59326806]
[1694131063733,0.0201,26263.0,26262.0,0.57326806]
[1694131063945,0.0201,26263.0,26262.0,3.86179386]
[1694131064173,0.0201,26263.0,26262.0,4.28387386]
[1694131064174,0.00857624,26263.0,26262.0,4.28387386]
[1694131064389,0.0201,26269.0,26268.0,0.47326806]
[1694131064609,0.0201,26269.0,26268.0,3.5461498]
[1694131064838,0.40865322,26269.0,26268.0,3.40947761]
[1694131065075,0.40865322,26269.0,26268.0,0.68706806]
[1694131065311,0.40865322,26269.0,26268.0,1.33155006]
[1694131065953,0.40865322,26269.0,26268.0,0.53016806]
[1694131066175,0.40965322,26269.0,26268.0,0.58116806]
[1694131066869,0.40965322,26269.0,26268.0,1.35455006]
[1694131066870,0.41065322,26269.0,26268.0,1.35455006]
[1694131067095,0.41065322,26269.0,26268.0,0.47316806]
[1694131067305,0.41065322,26269.0,26268.0,0.1399]
[1694131067546,0.41065322,26269.0,26268.0,0.1599]
[1694131067755,0.41065322,26269.0,26268.0,0.55316806]
[1694131068605,0.43365322,26269.0,26268.0,0.55316806]
[1694131069071,0.41065322,26269.0,26268.0,0.55316806]
[1694131069254,0.40965322,26269.0,26268.0,0.54216806]
[1694131069497,0.43265322,26269.0,26268.0,0.54216806]
[1694131069711,0.43265322,26269.0,26268.0,0.1289]
[1694131069916,0.43265322,26269.0,26268.0,0.53016806]
[1694131070154,0.43165322,26269.0,26268.0,0.53016806]
[1694131070379,0.45065322,26269.0,26268.0,0.53216806]
[1694131070594,0.47465322,26269.0,26268.0,0.53416806]
[1694131071213,0.45065322,26269.0,26268.0,0.53216806]
[1694131071636,0.47465322,26269.0,26268.0,0.53416806]
[1694131072331,0.45165322,26269.0,26268.0,0.53416806]
[1694131073454,0.45165322,26269.0,26268.0,0.1209]
[1694131073649,0.45165322,26269.0,26268.0,0.53416806]
[1694131074778,0.45165322,26269.0,26268.0,0.45416806]
[1694131074953,0.45165322,26269.0,26268.0,0.53416806]
[1694131075593,0.45165322,26269.0,26268.0,0.68656606]
[1694131076737,0.45165322,26269.0,26268.0,0.70656606]
[1694131077595,0.45165322,26269.0,26268.0,0.60656606]
[1694131077809,0.45165322,26269.0,26268.0,0.70656606]
[1694131078692,0.45165322,26269.0,26268.0,0.60656606]
[1694131078914,0.45165322,26269.0,26268.0,0.70656606]
[1694131079357,0.45165322,26269.0,26268.0,0.60656606]
[1694131079569,0.45165322,26269.0,26268.0,0.70656606]
[1694131084657,0.64165322,26269.0,26268.0,0.70656606]
[1694131087781,0.66465322,26269.0,26268.0,0.70656606]
[1694131097621,0.66465322,26269.0,26268.0,0.68656606]
[1694131097853,0.66465322,26269.0,26268.0,0.70656606]
[1694131101777,0.63965322,26269.0,26268.0,0.70656606]
[1694131101982,0.61665322,26269.0,26268.0,2.22933006]
[1694131103855,0.61665322,26269.0,26268.0,1.46794806]
[1694131105079,0.61665322,26269.0,26268.0,0.70656606]
[1694131106844,0.63965322,26269.0,26268.0,0.55416806]
[1694131107231,0.65027341,26269.0,26268.0,0.55416806]
[1694131107996,0.65027341,26269.0,26268.0,0.51416806]
[1694131108392,0.65027341,26269.0,26268.0,0.55416806]
[1694131108393,0.64557177,26269.0,26268.0,0.55416806]
[1694131109848,0.64557177,26269.0,26268.0,0.64528892]
[1694131110055,0.64557177,26269.0,26268.0,0.55416806]
[1694131110267,0.65618344,26269.0,26268.0,0.55416806]
[1694131112282,0.65618344,26269.0,26268.0,0.43726806]
[1694131112504,0.65618344,26269.0,26268.0,0.52838892]
[1694131112719,0.65618344,26269.0,26268.0,0.43726806]
[1694131113502,0.65618344,26269.0,26268.0,0.52838892]
[1694131114511,0.65618344,26269.0,26268.0,2.05115292]
[1694131114711,0.63318344,26269.0,26268.0,2.05115292]
[1694131115318,0.62257177,26269.0,26268.0,2.05115292]
[1694131115983,0.62257177,26269.0,26268.0,0.11512086]
[1694131116189,0.62257177,26269.0,26268.0,0.004]
[1694131117574,3.68817218,26269.0,26268.0,0.004]
[1694131117791,5.36571619,26269.0,26268.0,0.004]
[1694131118013,4.94183658,26269.0,26268.0,0.004]
[1694131118443,4.91783658,26269.0,26268.0,0.002]
[1694131118711,4.89876531,26269.0,26261.0,0.33326806]
[1694131118968,0.38855322,26263.0,26261.0,0.33326806]
[1694131119227,1.91163522,26263.0,26261.0,0.33326806]
[1694131120903,0.25712108,26262.0,26261.0,0.33326806]
[1694131121171,1.4072303,26262.0,26261.0,0.33326806]
[1694131121400,1.15602727,26262.0,26261.0,0.33426806]
[1694131121660,1.36054679,26262.0,26261.0,0.33426806]
[1694131121928,1.36054679,26262.0,26261.0,0.33326806]
[1694131122523,1.36254679,26262.0,26261.0,0.34426806]
[1694131123383,1.36154679,26262.0,26261.0,0.34026806]
[1694131123655,2.12310279,26262.0,26261.0,0.33326806]
[1694131123916,2.88365879,26262.0,26261.0,0.33326806]
[1694131124145,2.89465879,26262.0,26261.0,0.33426806]
[1694131124375,2.90665879,26262.0,26261.0,0.33426806]
[1694131124855,2.89465879,26262.0,26261.0,0.33426806]
[1694131125272,2.72513927,26262.0,26261.0,0.33426806]
[1694131125524,2.93001446,26262.0,26261.0,0.33426806]
[1694131125774,3.12001446,26262.0,26261.0,0.33426806]
[1694131125964,2.91513927,26262.0,26261.0,0.33426806]
[1694131126492,2.90313927,26262.0,26261.0,0.33426806]
[1694131126736,2.92713927,26262.0,26261.0,0.33426806]
[1694131126979,2.91613927,26262.0,26261.0,0.33326806]
[1694131127201,2.94013927,26262.0,26261.0,0.33526806]
[1694131130650,3.1880548,26262.0,26261.0,0.002]
[1694131130988,3.10223927,26262.0,26261.0,0.002]
[1694131131189,3.35300659,26262.0,26261.0,0.002]
[1694131131390,3.35732795,26262.0,26261.0,0.002]
[1694131132073,3.47422795,26262.0,26261.0,0.002]
[1694131132488,3.4789553,26262.0,26261.0,0.002]
[1694131133355,3.08396662,26262.0,26261.0,0.002]
[1694131133575,2.32241062,26262.0,26261.0,0.002]
[1694131134302,0.00591855,26269.0,26268.0,0.43326806]
[1694131134519,0.00591855,26269.0,26268.0,0.58868935]
[1694131134520,0.39447177,26269.0,26268.0,0.58868935]
[1694131134729,0.39447177,26269.0,26268.0,0.70558935]
[1694131135141,0.39447177,26269.0,26268.0,0.43326806]
[1694131136389,0.39447177,26269.0,26268.0,0.33326806]
[1694131136600,0.41847177,26269.0,26268.0,0.43526806]
[1694131136827,0.67002187,26269.0,26268.0,0.43726806]
[1694131137285,0.69302187,26269.0,26268.0,0.43726806]
[1694131142184,0.69302187,26269.0,26264.0,1.522967]
[1694131142185,0.07135039,26265.0,26264.0,1.522967]
[1694131142406,0.45990361,26265.0,26264.0,1.639867]
[1694131142626,1.18291716,26265.0,26264.0,1.639867]
[1694131143084,0.45990361,26265.0,26264.0,1.639867]
[1694131143303,0.45990361,26265.0,26264.0,1.642867]
[1694131143495,0.45990361,26265.0,26264.0,1.643867]
[1694131144973,0.45990361,26265.0,26264.0,0.882381]
[1694131145174,0.67002499,26265.0,26264.0,0.1209]
[1694131145380,0.45990361,26265.0,26264.0,0.004]
[1694131146015,0.57919793,26265.0,26264.0,0.004]
[1694131146386,0.81011666,26265.0,26264.0,0.004]
[1694131146810,0.73382234,26265.0,26264.0,0.004]
[1694131147036,0.50290361,26265.0,26264.0,0.004]
[1694131147212,0.7622896,26265.0,26264.0,0.004]
[1694131157293,0.50290361,26265.0,26264.0,0.004]
[1694131157542,0.69319551,26265.0,26264.0,0.004]
[1694131158675,0.67319551,26265.0,26264.0,0.004]
[1694131158899,0.69319551,26265.0,26264.0,0.004]
[1694131161281,0.70636849,26265.0,26264.0,0.004]
[1694131162657,0.6350181,26265.0,26264.0,0.004]
[1694131164811,0.7201117,26265.0,26264.0,0.004]
[1694131165489,0.6350181,26265.0,26264.0,0.004]
[1694131166425,0.38855322,26265.0,26264.0,2.405394]
[1694131166694,0.38855322,26265.0,26264.0,2.63292195]
[1694131166939,0.38855322,26265.0,26264.0,2.49651486]
[1694131167171,0.38855322,26265.0,26264.0,2.63292195]
[1694131167405,0.38855322,26265.0,26264.0,2.49651486]
[1694131170038,0.00591855,26269.0,26264.0,2.74660109]
[1694131170282,0.38855322,26268.0,26266.0,0.0910836]
[1694131170522,0.38855322,26268.0,26267.0,2.401133]
[1694131171795,0.40255322,26268.0,26267.0,2.402133]
[1694131172004,0.39655322,26268.0,26267.0,2.402133]
[1694131172455,0.40255322,26268.0,26267.0,2.402133]
[1694131173758,0.40255322,26268.0,26267.0,1.640722]
[1694131177967,0.014,26268.0,26267.0,2.57237231]
[1694131178172,0.014,26268.0,26267.0,2.61791411]
[1694131179482,0.014,26268.0,26267.0,2.70896609]
[1694131179932,0.014,26268.0,26267.0,2.57234069]
[1694131182352,0.014,26268.0,26267.0,2.64188069]
[1694131182552,0.014,26268.0,26267.0,2.55004871]
[1694131182760,0.014,26268.0,26267.0,2.54920871]
[1694131182982,0.014,26268.0,26267.0,2.48128871]
[1694131183871,0.014,26268.0,26267.0,2.402133]
[1694131184312,0.014,26268.0,26267.0,2.48143581]
[1694131184499,0.014,26268.0,26267.0,2.402133]
[1694131187164,0.014,26268.0,26267.0,2.64478189]
[1694131187365,0.014,26268.0,26267.0,2.63746189]
[1694131187616,0.014,26268.0,26267.0,2.54658991]
[1694131187817,0.014,26268.0,26267.0,2.63788189]
[1694131188022,0.014,26268.0,26267.0,2.63926189]